fUSD/lending_fUSD_20240412
["ID","MTS","AMOUNT","RATE_DAILY","PERIOD"]
[322304737,1712943059897,-500.0,0.00047123,31]
[322304738,1712943059906,-500.0,0.00047123,31]
[322304739,1712943059915,-500.0,0.00047123,31]
[322304740,1712943059924,-500.0,0.00047123,31]
[322304742,1712943059933,-500.0,0.00047123,31]
[322304744,1712943059943,-547.94,0.00047123,31]
[322304746,1712943059953,-262.22,0.00047123,31]
[322304748,1712943059963,-500.0,0.00047123,31]
[322304750,1712943059972,-500.0,0.00047123,31]
[322304752,1712943059981,-500.0,0.00047123,31]
[322304754,1712943059990,-500.0,0.00047123,31]
[322304756,1712943060000,-500.0,0.00047123,2]
[322304758,1712943060009,-500.0,0.00047123,31]
[322304760,1712943060019,-500.0,0.00047123,31]
[322304762,1712943060029,-500.0,0.00047123,31]
[322304764,1712943060038,-500.0,0.00047123,31]
[322304766,1712943060048,-500.0,0.00047123,31]
[322304768,1712943060058,-500.0,0.00047123,31]
[322304770,1712943060067,-500.0,0.00047123,31]
[322304772,1712943060078,-500.0,0.00047123,31]
[322304774,1712943060088,-500.0,0.00047123,31]
[322304776,1712943060098,-500.0,0.00047123,31]
[322304778,1712943060107,-500.0,0.00047123,31]
[322304780,1712943060117,-506.79,0.00047123,31]
[322304782,1712943060127,-500.0,0.00047123,31]
[322304784,1712943060137,-500.0,0.00047123,31]
[322304785,1712943060146,-500.0,0.00047123,31]
[322304787,1712943060156,-753.97,0.00047123,31]
[322304788,1712943060165,-500.0,0.00047123,31]
[322304789,1712943060175,-500.0,0.00047123,31]
[322304790,1712943060198,-761.02,0.00047123,31]
[322304791,1712943060208,-1116.32,0.00047123,31]
[322304792,1712943060217,-500.0,0.00047123,31]
[322304793,1712943060226,-1571.11,0.00047123,31]
[322304794,1712943060236,-500.0,0.00047123,31]
[322304795,1712943060246,-525.84,0.00047123,31]
[322304796,1712943060256,-500.0,0.00047123,31]
[322304797,1712943060266,-771.53,0.00047123,31]
[322304798,1712943060276,-688.0,0.00047123,31]
[322304799,1712943060286,-500.0,0.00047123,31]
[322304800,1712943060296,-285.54460345,0.00047123,31]
[322304801,1712943060306,-768.13,0.00047123,31]
[322304802,1712943060316,-4824.5,0.00047123,31]
[322304804,1712943060325,-500.0,0.00047123,31]
[322304806,1712943060335,-1199.86,0.00047123,31]
[322304808,1712943060345,-500.0,0.00047123,31]
[322304810,1712943060355,-500.0,0.00047123,31]
[322304812,1712943060364,-500.0,0.00047123,31]
[322304815,1712943060375,-500.0,0.00047123,31]
[322304816,1712943060385,-575.91,0.00047123,31]
[322304817,1712943060394,-500.0,0.00047123,31]
[322304818,1712943060403,-1185.31,0.00047123,31]
[322304819,1712943060413,-585.03,0.00047123,31]
[322304820,1712943060422,-664.52,0.00047123,31]
[322304821,1712943060432,-690.39,0.00047123,31]
[322304822,1712943060441,-500.0,0.00047123,31]
[322304823,1712943060451,-2922.2,0.00047123,31]
[322304824,1712943060460,-500.0,0.00047123,31]
[322304825,1712943060470,-1072.1,0.00047123,31]
[322304826,1712943060479,-630.53,0.00047123,31]
[322304827,1712943060489,-500.0,0.00047123,31]
[322304828,1712943060502,-500.0,0.00047123,31]
[322304830,1712943060513,-817.79,0.00047123,31]
[322304832,1712943060522,-500.0,0.00047123,31]
[322304833,1712943060532,-500.0,0.00047123,31]
[322304835,1712943060544,-202.97,0.00047123,31]
[322304837,1712943060554,-11147.25,0.00047123,31]
[322304839,1712943060564,-2674.46,0.00047123,31]
[322304841,1712943060573,-500.0,0.00047123,31]
[322304842,1712943060583,-1664.34,0.00047123,31]
[322304844,1712943060594,-500.0,0.00047123,31]
[322304846,1712943060604,-564.81818859,0.00047123,31]
[322304848,1712943060614,-500.0,0.00047123,31]
[322304850,1712943060625,-500.0,0.00047123,31]
[322304851,1712943060636,-1490.98,0.00047123,31]
[322304852,1712943060647,-500.0,0.00047123,31]
[322304853,1712943060657,-532.17,0.00047123,31]
[322304854,1712943060666,-2085.05,0.00047123,31]
[322304855,1712943060676,-500.0,0.00047123,31]
[322304856,1712943060698,-625.04,0.00047123,31]
[322304857,1712943060707,-500.0,0.00047123,31]
[322304858,1712943060717,-842.21,0.00047123,31]
[322304860,1712943060726,-500.0,0.00047123,31]
[322304862,1712943060738,-500.0,0.00047123,31]
[322304864,1712943060747,-500.0,0.00047123,21]
[322304866,1712943060757,-707.65,0.00047123,31]
[322304868,1712943060767,-500.0,0.00047123,31]
[322304870,1712943060777,-500.0,0.00047123,31]
[322304872,1712943060788,-500.0,0.00047123,31]
[322304874,1712943060798,-500.0,0.00047123,31]
[322304875,1712943060808,-500.0,0.00047123,31]
[322304877,1712943060818,-754.73,0.00047123,31]
[322304879,1712943060828,-651.77,0.00047123,31]
[322304881,1712943060838,-930.65,0.00047123,31]
[322304883,1712943060848,-500.0,0.00047123,31]
[322304885,1712943060861,-500.0,0.00047123,31]
[322304887,1712943060872,-500.0,0.00047123,31]
[322304889,1712943060882,-538.07840635,0.00047123,31]
[322304891,1712943060892,-500.0,0.00047123,31]
[322304893,1712943060902,-566.71,0.00047123,31]
[322304895,1712943060911,-500.0,0.00047123,31]
[322304897,1712943060921,-500.0,0.00047123,31]
[322304899,1712943060934,-500.0,0.00047123,31]
[322304901,1712943060944,-500.0,0.00047123,31]
[322304903,1712943060958,-500.0,0.00047123,31]
[322304905,1712943060969,-500.0,0.00047123,31]
[322304907,1712943060978,-649.77691029,0.00047123,31]
[322304909,1712943060988,-500.0,0.00047123,31]
[322304911,1712943060997,-400.29,0.00047123,31]
[322304913,1712943061007,-500.0,0.00047123,31]
[322304915,1712943061016,-500.0,0.00047123,31]
[322304917,1712943061027,-500.0,0.00047123,31]
[322304919,1712943061037,-500.0,0.00047123,31]
[322304921,1712943061048,-500.0,0.00047123,7]
[322304923,1712943061058,-500.0,0.00047123,31]
[322304925,1712943061068,-558.76,0.00047123,31]
[322304927,1712943061078,-500.0,0.00047123,31]
[322304929,1712943061088,-500.0,0.00047123,31]
[322304931,1712943061098,-2201.95,0.00047123,31]
[322304933,1712943061108,-500.0,0.00047123,31]
[322304935,1712943061118,-270.15,0.00047123,31]
[322304937,1712943061127,-500.0,0.00047123,31]
[322304939,1712943061137,-500.0,0.00047123,31]
[322304941,1712943061147,-528.08,0.00047123,31]
[322304943,1712943061157,-500.0,0.00047123,31]
[322304945,1712943061166,-500.0,0.00047123,31]
[322304947,1712943061176,-1733.44,0.00047123,31]
[322304949,1712943061185,-500.0,0.00047123,31]
[322304951,1712943061195,-1511.61,0.00047123,31]
[322304953,1712943061204,-500.0,0.00047123,31]
[322304955,1712943061217,-500.0,0.00047123,31]
[322304957,1712943061226,-500.0,0.00047123,31]
[322304959,1712943061236,-500.0,0.00047123,31]
[322304961,1712943061247,-500.0,0.00047123,31]
[322304963,1712943061256,-1300.84,0.00047123,31]
[322304965,1712943061265,-500.0,0.00047123,31]
[322304967,1712943061275,-500.0,0.00047123,31]
[322304969,1712943061285,-330.42811057,0.00047123,31]
[322304971,1712943061295,-466.60603008,0.00047123,31]
[322304987,1712943061444,-558.49,0.00047123,31]
[322304989,1712943061455,-959.18,0.00047123,31]
[322304991,1712943061464,-500.0,0.00047123,31]
[322304993,1712943061473,-500.0,0.00047123,31]
[322304995,1712943061484,-921.12,0.00047123,31]
[322304997,1712943061494,-500.0,0.00047123,31]
[322304999,1712943061508,-500.0,0.00047123,31]
[322305001,1712943061517,-500.0,0.00047123,31]
[322305003,1712943061527,-500.0,0.00047123,31]
[322305005,1712943061536,-802.81,0.00047123,31]
[322305007,1712943061548,-500.0,0.00047123,31]
[322305009,1712943061558,-500.0,0.00047123,31]
[322305011,1712943061568,-2186.79,0.00047123,31]
[322305013,1712943061579,-500.0,0.00047123,31]
[322305015,1712943061590,-1066.91,0.00047123,31]
[322305017,1712943061600,-500.0,0.00047123,31]
[322305019,1712943061610,-2219.87,0.00047123,31]
[322305021,1712943061622,-500.0,0.00047123,31]
[322305023,1712943061633,-500.0,0.00047123,31]
[322305025,1712943061642,-195.39,0.00047123,31]
[322305027,1712943061654,-593.49,0.00047123,31]
[322305029,1712943061664,-500.0,0.00047123,31]
[322305031,1712943061674,-6085.26,0.00047123,31]
[322305033,1712943061683,-500.0,0.00047123,31]
[322305035,1712943061693,-500.0,0.00047123,31]
[322305037,1712943061703,-500.0,0.00047123,31]
[322305039,1712943061714,-500.0,0.00047123,31]
[322305041,1712943061723,-500.0,0.00047123,31]
[322305043,1712943061733,-500.0,0.00047123,31]
[322305045,1712943061743,-300.06603868,0.00047123,2]
[322305047,1712943061754,-500.0,0.00047123,31]
[322305049,1712943061763,-500.0,0.00047123,31]
[322305051,1712943061773,-683.18,0.00047123,31]
[322305053,1712943061783,-500.0,0.00047123,31]
[322305055,1712943061793,-1289.09,0.00047123,31]
[322305057,1712943061803,-2118.68,0.00047123,31]
[322305059,1712943061812,-500.0,0.00047123,31]
[322305061,1712943061822,-500.0,0.00047123,31]
[322305063,1712943061831,-500.0,0.00047123,31]
[322305065,1712943061841,-842.4,0.00047123,31]
[322305067,1712943061851,-542.64,0.00047123,31]
[322305069,1712943061861,-500.0,0.00047123,31]
[322305071,1712943061870,-500.0,0.00047123,31]
[322305073,1712943061880,-674.83,0.00047123,31]
[322305075,1712943061890,-500.0,0.00047123,31]
[322305077,1712943061900,-1964.08,0.00047123,31]
[322305079,1712943061910,-500.0,0.00047123,31]
[322305081,1712943061920,-500.0,0.00047123,31]
[322305083,1712943061933,-500.0,0.00047123,31]
[322305085,1712943061945,-2132.39,0.00047123,31]
[322305087,1712943061956,-606.0,0.00047126,30]
[322305089,1712943061966,-322.0,0.00047126,30]
[322305091,1712943061976,-411.0,0.00047126,30]
[322305093,1712943061993,-1871.01756841,0.00047173,23]
[322305095,1712943062003,-150.11,0.0004726,2]
[322305097,1712943062013,-155.98814489,0.00047293,30]
[322305099,1712943062023,-500.0,0.00047397,30]
[322305101,1712943062032,-419.74675316,0.00047397,31]
[322305103,1712943062042,-500.0,0.00047397,31]
[322305105,1712943062053,-500.0,0.00047397,31]
[322305107,1712943062066,-500.0,0.00047397,31]
[322305108,1712943062076,-500.0,0.00047397,31]
[322305110,1712943062087,-500.0,0.00047397,31]
[322305113,1712943062098,-500.0,0.00047397,31]
[322305115,1712943062108,-168.04,0.00047397,31]
[322305116,1712943062118,-582.92,0.00047397,31]
[322305119,1712943062128,-500.0,0.00047397,31]
[322305121,1712943062138,-500.0,0.00047397,31]
[322305122,1712943062148,-289.17722235,0.00047397,31]
[322305124,1712943062157,-500.0,0.00047397,2]
[322305126,1712943062166,-500.0,0.00047397,31]
[322305128,1712943062175,-258.65655435,0.00047397,31]
[322305130,1712943062185,-500.0,0.00047397,31]
[322305133,1712943062198,-151.05,0.00047397,31]
[322305135,1712943062207,-502.0,0.00047397,31]
[322305137,1712943062217,-500.0,0.00047397,31]
[322305139,1712943062227,-500.0,0.00047397,31]
[322305140,1712943062237,-1000.0,0.00047397,120]
[322305143,1712943062247,-276.12,0.00047397,31]
[322305145,1712943062257,-500.0,0.00047397,31]
[322305146,1712943062267,-608.51,0.00047397,31]
[322305148,1712943062277,-500.0,0.00047397,31]
[322305151,1712943062287,-500.0,0.00047397,31]
[322305153,1712943062298,-536.64,0.00047397,31]
[322305155,1712943062308,-500.0,0.00047397,31]
[322305157,1712943062318,-500.0,0.00047397,31]
[322305158,1712943062329,-500.0,0.00047397,31]
[322305159,1712943062340,-500.0,0.00047397,31]
[322305160,1712943062350,-623.36669376,0.00047397,31]
[322305161,1712943062359,-500.0,0.00047397,31]
[322305163,1712943062369,-500.0,0.00047397,31]
[322305165,1712943062379,-500.0,0.00047397,31]
[322305167,1712943062389,-500.0,0.00047397,31]
[322305168,1712943062399,-500.0,0.00047397,31]
[322305169,1712943062409,-500.0,0.00047397,31]
[322305170,1712943062419,-500.0,0.00047397,31]
[322305171,1712943062429,-500.0,0.00047397,31]
[322305172,1712943062445,-500.0,0.00047397,31]
[322305173,1712943062455,-486.92,0.00047397,31]
[322305174,1712943062464,-500.0,0.00047397,31]
[322305175,1712943062477,-500.0,0.00047397,31]
[322305176,1712943062490,-500.0,0.00047397,31]
[322305177,1712943062505,-500.0,0.00047397,31]
[322305178,1712943062515,-500.0,0.00047397,31]
[322305179,1712943062526,-500.0,0.00047397,31]
[322305180,1712943062536,-533.02,0.00047397,2]
[322305181,1712943062548,-375.7442369,0.00047397,31]
[322305182,1712943062559,-500.0,0.00047397,31]
[322305183,1712943062569,-500.0,0.00047397,31]
[322305184,1712943062580,-500.0,0.00047397,31]
[322305185,1712943062592,-500.0,0.00047397,31]
[322305186,1712943062603,-500.0,0.00047397,31]
[322305187,1712943062614,-500.0,0.00047397,31]
[322305188,1712943062625,-500.0,0.00047397,31]
[322305189,1712943062636,-953.04,0.00047397,31]
[322305190,1712943062647,-500.0,0.00047397,31]
[322305191,1712943062658,-167.76950146,0.00047397,31]
[322305192,1712943062669,-152.14982995,0.00047397,31]
[322305193,1712943062680,-500.0,0.00047397,31]
[322305194,1712943062689,-617.90513337,0.00047397,31]
[322305195,1712943062700,-388.47613172,0.00047397,31]
[322305196,1712943062710,-500.0,0.00047397,31]
[322305197,1712943062721,-541.41422584,0.00047397,31]
[322305198,1712943062730,-500.0,0.00047397,31]
[322305199,1712943062740,-500.0,0.00047397,31]
[322305200,1712943062750,-500.0,0.00047397,31]
[322305201,1712943062764,-500.0,0.00047397,31]
[322305202,1712943062773,-500.0,0.00047397,31]
[322305203,1712943062783,-500.0,0.00047397,31]
[322305204,1712943062794,-602.30625515,0.00047397,31]
[322305205,1712943062803,-500.0,0.00047397,31]
[322305206,1712943062813,-500.0,0.00047397,31]
[322305207,1712943062823,-500.0,0.00047397,31]
[322305208,1712943062832,-500.0,0.00047397,31]
[322305209,1712943062842,-500.0,0.00047397,31]
[322305210,1712943062852,-500.0,0.00047397,31]
[322305211,1712943062862,-500.0,0.00047397,31]
[322305212,1712943062872,-500.0,0.00047397,31]
[322305213,1712943062882,-500.0,0.00047397,31]
[322305214,1712943062893,-503.14,0.00047397,31]
[322305215,1712943062902,-500.0,0.00047397,31]
[322305216,1712943062912,-500.0,0.00047397,31]
[322305217,1712943062923,-500.0,0.00047397,31]
[322305218,1712943062937,-500.0,0.00047397,31]
[322305219,1712943062948,-500.0,0.00047397,31]
[322305220,1712943062958,-500.0,0.00047397,31]
[322305221,1712943062968,-500.0,0.00047397,31]
[322305222,1712943062985,-500.0,0.00047397,31]
[322305223,1712943062996,-500.0,0.00047397,31]
[322305224,1712943063006,-500.0,0.00047397,31]
[322305225,1712943063016,-500.0,0.00047397,31]
[322305226,1712943063027,-500.0,0.00047397,31]
[322305227,1712943063037,-500.0,0.00047397,31]
[322305228,1712943063048,-476.12,0.00047397,31]
[322305229,1712943063059,-500.0,0.00047397,31]
[322305230,1712943063069,-234.00509274,0.00047397,31]
[322305231,1712943063080,-500.0,0.00047397,31]
[322305232,1712943063090,-500.0,0.00047397,31]
[322305233,1712943063100,-500.0,0.00047397,31]
[322305234,1712943063110,-547.94,0.00047397,31]
[322305235,1712943063121,-500.0,0.00047397,31]
[322305236,1712943063131,-500.0,0.00047397,31]
[322305237,1712943063141,-500.0,0.00047397,31]
[322305238,1712943063151,-500.0,0.00047397,31]
[322305239,1712943063161,-500.0,0.00047397,2]
[322305240,1712943063171,-500.0,0.00047397,31]
[322305241,1712943063181,-500.0,0.00047397,31]
[322305242,1712943063190,-500.0,0.00047397,31]
[322305243,1712943063200,-500.0,0.00047397,31]
[322305244,1712943063210,-500.0,0.00047397,31]
[322305245,1712943063220,-500.0,0.00047397,31]
[322305246,1712943063230,-500.0,0.00047397,31]
[322305247,1712943063240,-500.0,0.00047397,31]
[322305248,1712943063249,-500.0,0.00047397,31]
[322305249,1712943063259,-500.0,0.00047397,31]
[322305250,1712943063269,-500.0,0.00047397,31]
[322305251,1712943063279,-506.79,0.00047397,31]
[322305252,1712943063289,-500.0,0.00047397,31]
[322305253,1712943063299,-500.0,0.00047397,31]
[322305254,1712943063309,-500.0,0.00047397,31]
[322305255,1712943063319,-753.97,0.00047397,31]
[322305256,1712943063330,-500.0,0.00047397,31]
[322305257,1712943063339,-500.0,0.00047397,31]
[322305258,1712943063349,-761.02,0.00047397,31]
[322305259,1712943063359,-1116.32,0.00047397,31]
[322305260,1712943063369,-500.0,0.00047397,31]
[322305261,1712943063379,-1571.11,0.00047397,31]
[322305262,1712943063389,-500.0,0.00047397,31]
[322305263,1712943063399,-525.84,0.00047397,31]
[322305264,1712943063409,-500.0,0.00047397,31]
[322305265,1712943063420,-771.53,0.00047397,31]
[322305266,1712943063434,-688.0,0.00047397,31]
[322305267,1712943063458,-500.0,0.00047397,31]
[322305268,1712943063471,-768.13,0.00047397,31]
[322305269,1712943063482,-4824.5,0.00047397,31]
[322305270,1712943063494,-500.0,0.00047397,31]
[322305271,1712943063508,-1199.86,0.00047397,31]
[322305272,1712943063518,-500.0,0.00047397,31]
[322305273,1712943063528,-500.0,0.00047397,31]
[322305274,1712943063539,-500.0,0.00047397,31]
[322305275,1712943063557,-500.0,0.00047397,31]
[322305276,1712943063568,-575.91,0.00047397,31]
[322305277,1712943063579,-500.0,0.00047397,31]
[322305278,1712943063590,-585.03,0.00047397,31]
[322305279,1712943063600,-1185.31,0.00047397,31]
[322305280,1712943063618,-664.52,0.00047397,31]
[322305281,1712943063633,-690.39,0.00047397,31]
[322305282,1712943063643,-500.0,0.00047397,31]
[322305283,1712943063654,-2922.2,0.00047397,31]
[322305284,1712943063664,-500.0,0.00047397,31]
[322305285,1712943063674,-1072.1,0.00047397,31]
[322305286,1712943063685,-630.53,0.00047397,31]
[322305287,1712943063696,-500.0,0.00047397,31]
[322305288,1712943063706,-500.0,0.00047397,31]
[322305289,1712943063716,-500.0,0.00047397,31]
[322305290,1712943063727,-817.79,0.00047397,31]
[322305291,1712943063738,-500.0,0.00047397,31]
[322305292,1712943063750,-11147.25,0.00047397,31]
[322305293,1712943063761,-2674.46,0.00047397,31]
[322305294,1712943063772,-1664.34,0.00047397,31]
[322305295,1712943063782,-500.0,0.00047397,31]
[322305296,1712943063794,-500.0,0.00047397,31]
[322305297,1712943063807,-500.0,0.00047397,31]
[322305298,1712943063817,-1490.98,0.00047397,31]
[322305299,1712943063828,-500.0,0.00047397,31]
[322305300,1712943063839,-500.0,0.00047397,31]
[322305301,1712943063848,-532.17,0.00047397,31]
[322305302,1712943063866,-2085.05,0.00047397,31]
[322305303,1712943063877,-500.0,0.00047397,31]
[322305304,1712943063889,-500.0,0.00047397,31]
[322305305,1712943063899,-842.21,0.00047397,31]
[322305306,1712943063910,-500.0,0.00047397,31]
[322305307,1712943064088,-500.0,0.00047397,21]
[322305308,1712943064098,-707.65,0.00047397,31]
[322305309,1712943064108,-500.0,0.00047397,31]
[322305310,1712943064122,-373.45600169,0.00047397,31]
[322305311,1712943064133,-500.0,0.00047397,31]
[322305312,1712943064144,-500.0,0.00047397,31]
[322305313,1712943064154,-500.0,0.00047397,31]
[322305314,1712943064164,-500.0,0.00047397,31]
[322305315,1712943064174,-754.73,0.00047397,31]
[322305316,1712943064184,-651.77,0.00047397,31]
[322305317,1712943064194,-930.65,0.00047397,31]
[322305318,1712943064205,-500.0,0.00047397,31]
[322305319,1712943064215,-500.0,0.00047397,31]
[322305320,1712943064225,-500.0,0.00047397,31]
[322305321,1712943064235,-465.78350723,0.00047397,31]
[322305322,1712943064244,-566.71,0.00047397,31]
[322305323,1712943064254,-178.06575483,0.00047397,31]
[322305324,1712943064265,-500.0,0.00047397,31]
[322305325,1712943064275,-500.0,0.00047397,31]
[322305326,1712943064285,-500.0,0.00047397,31]
[322305327,1712943064295,-500.0,0.00047397,31]
[322305328,1712943064304,-500.0,0.00047397,31]
[322305329,1712943064315,-500.0,0.00047397,31]
[322305330,1712943064324,-500.0,0.00047397,31]
[322305331,1712943064335,-500.0,0.00047397,31]
[322305332,1712943064345,-500.0,0.00047397,31]
[322305333,1712943064355,-500.0,0.00047397,7]
[322305334,1712943064366,-500.0,0.00047397,31]
[322305335,1712943064376,-558.76,0.00047397,31]
[322305336,1712943064385,-500.0,0.00047397,31]
[322305337,1712943064394,-500.0,0.00047397,31]
[322305338,1712943064405,-2201.95,0.00047397,31]
[322305339,1712943064415,-500.0,0.00047397,31]
[322305340,1712943064426,-500.0,0.00047397,31]
[322305341,1712943064441,-500.0,0.00047397,31]
[322305342,1712943064451,-500.0,0.00047397,31]
[322305343,1712943064464,-1733.44,0.00047397,31]
[322305344,1712943064474,-500.0,0.00047397,31]
[322305345,1712943064486,-500.0,0.00047397,31]
[322305346,1712943064495,-1511.61,0.00047397,31]
[322305347,1712943064507,-500.0,0.00047397,31]
[322305348,1712943064518,-500.0,0.00047397,31]
[322305349,1712943064528,-623.55,0.00047397,31]
[322305350,1712943064538,-500.0,0.00047397,31]
[322305351,1712943064552,-500.0,0.00047397,31]
[322305352,1712943064563,-500.0,0.00047397,31]
[322305353,1712943064575,-1300.84,0.00047397,31]
[322305354,1712943064585,-500.0,0.00047397,31]
[322305355,1712943064595,-558.49,0.00047397,31]
[322305356,1712943064605,-500.0,0.00047397,31]
[322305357,1712943064616,-959.18,0.00047397,31]
[322305358,1712943064626,-500.0,0.00047397,31]
[322305359,1712943064638,-921.12,0.00047397,31]
[322305360,1712943064648,-347.95496366,0.00047397,31]
[322305361,1712943064659,-500.0,0.00047397,31]
[322305362,1712943064669,-500.0,0.00047397,31]
[322305363,1712943064679,-500.0,0.00047397,31]
[322305364,1712943064692,-802.81,0.00047397,31]
[322305365,1712943064705,-386.34,0.00047397,31]
[322305366,1712943064717,-500.0,0.00047397,31]
[322305367,1712943064728,-2186.79,0.00047397,31]
[322305368,1712943064738,-500.0,0.00047397,31]
[322305369,1712943064747,-1066.91,0.00047397,31]
[322305370,1712943064757,-500.0,0.00047397,31]
[322305371,1712943064769,-2219.87,0.00047397,31]
[322305372,1712943064779,-500.0,0.00047397,31]
[322305373,1712943064789,-500.0,0.00047397,31]
[322305374,1712943064799,-593.49,0.00047397,31]
[322305375,1712943064809,-500.0,0.00047397,31]
[322305376,1712943064820,-6085.26,0.00047397,31]
[322305377,1712943064830,-500.0,0.00047397,31]
[322305378,1712943064840,-500.0,0.00047397,31]
[322305379,1712943064851,-500.0,0.00047397,31]
[322305380,1712943064863,-500.0,0.00047397,31]
[322305381,1712943064873,-500.0,0.00047397,31]
[322305382,1712943064883,-500.0,0.00047397,31]
[322305383,1712943064893,-500.0,0.00047397,31]
[322305384,1712943064903,-500.0,0.00047397,31]
[322305385,1712943064913,-683.18,0.00047397,31]
[322305386,1712943064922,-500.0,0.00047397,31]
[322305387,1712943064935,-1289.09,0.00047397,31]
[322305388,1712943064945,-2118.68,0.00047397,31]
[322305389,1712943064957,-500.0,0.00047397,31]
[322305390,1712943064966,-500.0,0.00047397,31]
[322305391,1712943064976,-466.53038919,0.00047397,31]
[322305392,1712943064986,-842.4,0.00047397,31]
[322305393,1712943064996,-542.64,0.00047397,31]
[322305394,1712943065006,-500.0,0.00047397,31]
[322305395,1712943065016,-500.0,0.00047397,31]
[322305396,1712943065026,-674.83,0.00047397,31]
[322305397,1712943065037,-500.0,0.00047397,31]
[322305398,1712943065047,-1964.08,0.00047397,31]
[322305399,1712943065058,-500.0,0.00047397,31]
[322305400,1712943065068,-500.0,0.00047397,31]
[322305401,1712943065079,-2132.39,0.00047397,31]
[322305402,1712943065090,-219.27153933,0.00047397,31]
[322305403,1712943065100,-150.0,0.000475,9]
[322305404,1712943065111,-299.2,0.00047526,2]
[322305405,1712943065121,-153.92846996,0.00047538,30]
[322305406,1712943065132,-606.0,0.00047607,30]
[322305407,1712943065142,-322.0,0.00047607,30]
[322305408,1712943065152,-411.0,0.00047607,30]
[322305409,1712943065163,-151.0,0.00047634,2]
[322305410,1712943065173,-560.82775942,0.00047671,30]
[322305411,1712943065186,-559.96,0.00047671,31]
[322305412,1712943065196,-291.25,0.00047671,31]
[322305413,1712943065207,-500.0,0.00047671,31]
[322305414,1712943065216,-500.0,0.00047671,31]
[322305415,1712943065230,-500.0,0.00047671,31]
[322305416,1712943065240,-500.0,0.00047671,31]
[322305417,1712943065250,-500.0,0.00047671,31]
[322305418,1712943065263,-354.95,0.00047671,31]
[322305419,1712943065274,-500.0,0.00047671,2]
[322305420,1712943065284,-500.0,0.00047671,31]
[322305421,1712943065293,-500.0,0.00047671,31]
[322305422,1712943065303,-502.0,0.00047671,31]
[322305423,1712943065313,-254.09,0.00047671,31]
[322305424,1712943065323,-500.0,0.00047671,31]
[322305425,1712943065332,-1000.0,0.00047671,120]
[322305426,1712943065342,-500.0,0.00047671,31]
[322305427,1712943065352,-608.51,0.00047671,31]
[322305428,1712943065361,-425.97664466,0.00047671,31]
[322305429,1712943065371,-170.98,0.00047671,31]
[322305430,1712943065381,-536.64,0.00047671,31]
[322305431,1712943065391,-225.50744464,0.00047671,31]
[322305432,1712943065401,-500.0,0.00047671,31]
[322305433,1712943065412,-500.0,0.00047671,31]
[322305434,1712943065423,-500.0,0.00047671,31]
[322305435,1712943065438,-500.0,0.00047671,31]